Cogmind - Beta 13 @@@ ROGUE MODE // 2024.03.31 @ 20:54:14 Player: weedlord420 Result: Self-destructed Performance ------------- Evolutions (2) 1000 Regions Visited (4) 800 Robots Destroyed (74) 370 Value Destroyed (1838) 1838 Prototype IDs (3) 60 Alien Tech Used (0) 0 Bonus (128) 128 TOTAL SCORE: 4196 Bonus ------- High Alert Combat Kills 128 Cogmind --------- Core Integrity 417/550 Matter 208/300 Energy 80/100 System Corruption 0% Temperature Cool (0) Movement Treading (166) Location -8/Materials Parts ------- > --- POWER (1) -------- (None) > --- PROPULSION (4) --- Light Treads Armored Treads Armored Treads > --- UTILITY (4) ------ Small Storage Unit Launcher Guidance Computer Improved Light Armor Plating > --- WEAPON (2) ------- Minigun Advanced EMP Blaster > --- INVENTORY (8) ---- Cryofiber Web Signal Interpreter ECM Suite Medium Armor Plating Improved Light Armor Plating Minigun Faulty Advanced EMP Blaster Improved Grenade Launcher Peak State ------------ > --- POWER ------------ Improved Ion Engine > --- PROPULSION ------- Light Treads Armored Treads Armored Treads > --- UTILITY ---------- Small Storage Unit Launcher Guidance Computer Improved Light Armor Plating Hacking Suite > --- WEAPON ----------- Minigun Advanced EMP Blaster > --- INVENTORY -------- Cryofiber Web Signal Interpreter ECM Suite Medium Armor Plating Improved Light Armor Plating Minigun Advanced EMP Blaster Improved Grenade Launcher [Rating: 29] Favorites ----------- Power Light Ion Engine Engine Light Ion Engine Power Core Light Nuclear Core Propulsion Aluminum Leg Treads Armored Treads Leg Aluminum Leg Wheel Wheel Hover Unit Hover Unit Flight Unit Flight Unit Utility Small Storage Unit Device Improved Terrain Scanner Storage Small Storage Unit Processor Launcher Guidance Computer Hackware Hacking Suite Protection Improved Light Armor Plating Weapon Spread Laser Energy Gun Spread Laser Ballistic Gun Autogun Ballistic Cannon Assault Cannon Launcher Rocket Launcher Build | -11 -10 -10 -9 -8 ------- Run | Yrd Mat Min Mat Mat Slots Evolved 4 | . . . 2 2 Power . | . . . . . Propulsion 2 | . . . 2 . Utility 2 | . . . . 2 Weapon . | . . . . . Parts Attached 61 | 7 9 13 15 17 Power 8 | 1 2 2 2 1 Engine 7 | 1 2 2 1 1 Core 1 | . . . 1 . Reactor . | . . . . . Propulsion 26 | 2 2 9 9 4 Treads 4 | . . . . 4 Leg 8 | 2 2 . 4 . Wheel 7 | . . 7 . . Hover 4 | . . . 4 . Flight 3 | . . 2 1 . Utility 8 | 2 1 1 1 3 Device 1 | 1 . . . . Storage 2 | 1 1 . . . Processor 1 | . . . 1 . Hackware 2 | . . . . 2 Protection 2 | . . 1 . 1 Artifact . | . . . . . Weapon 19 | 2 4 1 3 9 Energy Gun 5 | 1 . 1 2 1 Energy Cannon . | . . . . . Ballistic Gun 9 | 1 4 . . 4 Ballistic Cannon 1 | . . . . 1 Launcher 4 | . . . 1 3 Special Weapon . | . . . . . Impact Weapon . | . . . . . Slashing Weapon . | . . . . . Piercing Weapon . | . . . . . Special Melee Weapon . | . . . . . Unidentified Prototypes 1 | . . . . 1 Parts Lost 17 | . 2 4 4 7 Power 6 | . 2 . 2 2 Propulsion 8 | . . 3 2 3 Utility 2 | . . . . 2 Weapon 1 | . . 1 . . Highest Loss Streak 3 | . 1 2 3 2 To Critical Strikes . | . . . . . Average Slot Usage (%) 90 | . 98 86 91 88 Engine 8 | . 12 13 1 7 Core 1 | . . . 6 . Treads 8 | . . . . 22 Leg 13 | . 28 15 17 1 Wheel 2 | . . 8 2 . Hover 4 | . . . 16 2 Device 3 | . 14 6 . . Storage 11 | . 14 14 11 9 Processor 5 | . . . 11 9 Hackware 5 | . . . . 14 Protection 1 | . . 1 . 3 Energy Gun 7 | . 10 4 11 5 Ballistic Gun 10 | . 17 20 . 8 Launcher 3 | . . . 11 2 Naked Turns . | . . . . . Heaviest Build 24 | 13 15 17 17 24 Greatest Support 80 | 20 20 26 30 80 Greatest Overweight (x) 5 | . . 5 2 1 Average Overweight (x) . | . . . . . Largest Inventory Capacity 8 | 8 8 8 8 8 Average Capacity 7 | 7 8 8 8 8 Most Carried 8 | 2 8 8 8 8 Average Carried 7 | . 6 7 7 7 Final Capacity 8 | 8 8 8 8 8 Final Carried 8 | . 8 8 8 8 Class Distribution -------------------- 46% | Scavenger-Mutant 31% | Mutant 22% | Hacker-Mutant Dominant Class ---------------- Scavenger-Mutant | -10/Materials Mutant | -10/Mines Scavenger-Mutant | -9/Materials Hacker-Mutant | -8/Materials Resources | -11 -10 -10 -9 -8 ----------- Run | Yrd Mat Min Mat Mat Matter Collected 2123 | 270 144 524 544 641 Remotely . | . . . . . Salvage Created 2469 | 92 297 158 837 1085 Parts 144 | 5 20 . 54 65 Haulers Intercepted 9 | . . . 4 5 Recyclers Shooed 3 | . . . 1 2 Parts Field Recycled . | . . . . . Retrieved Matter . | . . . . . Parts Self-Destructed . | . . . . . Prevented . | . . . . . Kills | -11 -10 -10 -9 -8 ------- Run | Yrd Mat Min Mat Mat Combat Hostiles Destroyed 53 | . 7 12 18 16 Guns 27 | . 7 12 2 6 Cannons 2 | . . . . 2 AOE 24 | . . . 16 8 Classes Destroyed 13 | 2 5 1 5 . Worker 4 | . 1 . 1 2 Builder 4 | . 1 . 1 2 Tunneler 1 | 1 . . . . Hauler 9 | . . . 4 5 Recycler 7 | 1 . . 3 3 Mechanic 1 | . . . 1 . Operator 1 | . . . 1 . Watcher 6 | . 1 . 3 2 Swarmer 7 | . 3 . . 4 Grunt 22 | . 4 . 13 5 Brawler 2 | . . . 1 1 Sentry 10 | . . . 4 6 Assembled 12 | . . 12 . . Best Kill Streak 6 | 1 4 3 6 5 Combat Bots Only 4 | . 3 3 4 4 Max Kills in Single Turn 4 | 1 1 1 4 4 Gunslinging . | . . . . . Exploded 3 | . . . 2 3 Melee . | . . . . . Uniques/NPCs Destroyed . | . . . . . Combat | -11 -10 -10 -9 -8 -------- Run | Yrd Mat Min Mat Mat Hostile Shots Fired 255 | . 64 46 43 102 Missed 73 | . 19 13 14 27 Damage Taken 2974 | . 453 710 540 1271 Core 490 | . 18 133 206 133 Absorbed by Shields . | . . . . . Core Remaining (%) 62 | 100 . 39 48 . Volleys Fired 224 | 5 35 61 49 74 Largest 2 | 2 2 2 2 2 Hottest 110 | 70 70 63 98 110 Shots Fired 379 | 10 70 93 75 131 Gun 316 | 10 70 93 36 107 Cannon 6 | . . . . 6 Launcher 57 | . . . 39 18 Special . | . . . . . Kinetic 223 | 5 37 85 . 96 Thermal 94 | 5 33 8 36 12 Explosive 55 | . . . 39 16 Electromagnetic 7 | . . . . 7 Robot Hit Streak 11 | 9 7 6 9 11 Robot Miss Streak 10 | 1 3 6 5 10 Penetration Max . | . . . . . Secondary Targets . | . . . . . Shots Hit Robots 210 | 9 39 45 49 68 Core Hits 161 | 3 16 21 65 56 Critical Kills 2 | . . 2 . . Critical Parts Destroyed 2 | . . 1 . 1 Critical Strikes 7 | 1 2 3 . 1 Burn 3 | 1 2 . . . Destroy 4 | . . 3 . 1 Melee Attacks . | . . . . . Impact . | . . . . . Slashing . | . . . . . Piercing . | . . . . . Sneak Attacks . | . . . . . Combat Hostiles . | . . . . . Follow-up Attacks . | . . . . . Damage Inflicted 6396 | 115 529 720 2423 2609 Guns 2836 | 115 521 715 398 1087 Cannons 116 | . . . . 116 Explosions 3430 | . . . 2024 1406 Melee . | . . . . . Ramming 14 | . 8 5 1 . Kinetic 2020 | 65 295 669 . 991 Thermal 1142 | 50 226 46 613 207 Explosive 2867 | . . . 1809 1058 Electromagnetic 353 | . . . . 353 Impact . | . . . . . Slashing . | . . . . . Piercing . | . . . . . Highest Corruption 4 | . . 4 . . Average Corruption 3 | . . 3 . . Corruption Purged . | . . . . . Corruption Blocked . | . . . . . Effects 6 | . . 6 . . Message Errors 1 | . . 1 . . Matter Fused 2 | . . 2 . . Heat Flow Errors 1 | . . 1 . . Energy Discharges 1 | . . 1 . . Parts Rejected 1 | . . 1 . . Overload Shots . | . . . . . Overflow Damage 172 | . . . 104 68 Projectiles . | . . . . . Explosions 172 | . . . 104 68 Melee . | . . . . . Knockbacks . | . . . . . Impact . | . . . . . Kinetic . | . . . . . Secondary . | . . . . . Self-Inflicted Damage 384 | . . 2 122 260 Shots 10 | . . . 2 8 Rammed 2 | . . 1 1 . Targets Rammed 3 | . 1 1 1 . Kicked 1 | . 1 . . . Crushed . | . . . . . Highest Temperature 205 | 36 126 96 205 60 Average Temperature 35 | 16 43 11 61 18 Received Heat Transfer 790 | . 117 40 174 459 Siege Activations . | . . . . . Robots Corrupted . | . . . . . Combat Hostiles . | . . . . . Parts Fried 1 | . . . . 1 Impact Corruptions . | . . . . . Robots Melted . | . . . . . Combat Hostiles . | . . . . . Parts Melted 3 | . 3 . . . Heat Transferred 1981 | 222 814 100 650 195 Parts Sabotaged . | . . . . . Parts Stolen . | . . . . . Parts Stripped . | . . . . . Power Chain Reactions 4 | . . . . 4 Alert | -11 -10 -10 -9 -8 ------- Run | Yrd Mat Min Mat Mat Peak Influence 675 | 10 218 1 461 675 Initial 194 | . 6 1 . 194 Average 231 | 2 79 . 286 415 Maximum Alert Level 2 | . 1 . 2 2 Low Security (%) 41 | 100 79 100 18 . Level 1 38 | . 20 . 59 58 Level 2 19 | . . . 21 41 Level 3 . | . . . . . Level 4 . | . . . . . Level 5 . | . . . . . High Security . | . . . . . Max Security . | . . . . . Squads Dispatched 10 | . 1 . 7 2 Investigation 3 | . . . 3 . Extermination . | . . . . . Reinforcement 7 | . 1 . 4 2 Assault . | . . . . . Garrison . | . . . . . Intercept . | . . . . . Searches Triggered . | . . . . . Construction Impeded 3 | . . . 1 2 Haulers Reinforced . | . . . . . Active Scanning Responses . | . . . . . Cargo Convoy Interrupts . | . . . . . Stealth | -11 -10 -10 -9 -8 --------- Run | Yrd Mat Min Mat Mat Distress Signals 6 | . . . 4 2 Communications Jammed . | . . . . . Distress Signals . | . . . . . Times Spotted 78 | . 11 16 22 29 Peak Tracking Total 6 | . 4 5 5 6 Tactical Retreats 4 | . . 2 . 2 Traps | -11 -10 -10 -9 -8 ------- Run | Yrd Mat Min Mat Mat Traps Triggered . | . . . . . Indirectly . | . . . . . Trap Hack Attempts . | . . . . . Triggered . | . . . . . Disarmed . | . . . . . Reprogrammed . | . . . . . Reused . | . . . . . Traps Extracted . | . . . . . Installed . | . . . . . Triggered . | . . . . . Machines | -11 -10 -10 -9 -8 ---------- Run | Yrd Mat Min Mat Mat Machines Disabled 16 | . . . 9 7 Max in Single Turn 2 | . . . 2 2 Machines Repaired . | . . . . . Machines Dismantled . | . . . . . Machines Sabotaged . | . . . . . Overloaded Fab Kills . | . . . . . Hacking | -11 -10 -10 -9 -8 --------- Run | Yrd Mat Min Mat Mat Machines Accessed 12 | . 4 . 5 3 Terminals 11 | . 4 . 4 3 Fabricators . | . . . . . Repair Stations . | . . . . . Recycling Units . | . . . . . Scanalyzers 1 | . . . 1 . Garrison Access . | . . . . . Total Hacks 30 | . 9 . 11 10 Successful 16 | . 6 . 7 3 Failed 14 | . 3 . 4 7 Catastrophic 2 | . . . 2 . Database Lockouts . | . . . . . Manual . | . . . . . Terminals 27 | . 9 . 8 10 Fabricators . | . . . . . Repair Stations . | . . . . . Recycling Units . | . . . . . Scanalyzers 3 | . . . 3 . Garrison Access . | . . . . . Terminal Hacks 13 | . 6 . 4 3 Record 3 | . 2 . 1 . Robot Analysis 1 | . . . 1 . Alert Level 1 | . 1 . . . Unreport Threat 3 | . 1 . 2 . Locate Traps 2 | . 2 . . . Security Status 1 | . . . . 1 Transport Status 1 | . . . . 1 Hauler Manifests 1 | . . . . 1 Fabricator Hacks . | . . . . . Repair Station Hacks . | . . . . . Recycling Unit Hacks . | . . . . . Scanalyzer 3 | . . . 3 . Insert Component 2 | . . . 2 . Analyze 1 | . . . 1 . Garrison Access Hacks . | . . . . . Unauthorized Hacks . | . . . . . Terminals . | . . . . . Fabricators . | . . . . . Repair Stations . | . . . . . Recycling Units . | . . . . . Scanalyzers . | . . . . . Garrison Access . | . . . . . Data Cores Recovered 1 | . . . 1 . Used . | . . . . . Hacking Detections 8 | . 2 . 3 3 Full Trace Events 5 | . 1 . 3 1 Feedback Events . | . . . . . Feedback Blocked . | . . . . . Robot Schematics Acquired . | . . . . . Robots Built . | . . . . . Authchips . | . . . . . Time . | . . . . . Total Robot Build Rating . | . . . . . Part Schematics Acquired 1 | . . . 1 . Parts Built . | . . . . . Authchips . | . . . . . Time . | . . . . . Total Part Build Rating . | . . . . . Parts Repaired . | . . . . . Time . | . . . . . Parts Recycled . | . . . . . Recycled Matter . | . . . . . Retrieved Matter . | . . . . . Retrieved Components . | . . . . . Parts Scanalyzed 1 | . . . 1 . Part Schematics Acquired 1 | . . . 1 . Parts Damaged . | . . . . . Bothacking | -11 -10 -10 -9 -8 ------------ Run | Yrd Mat Min Mat Mat Used RIF Installer . | . . . . . Robots Hacked . | . . . . . Non-combat . | . . . . . Combat . | . . . . . Robot Hacks Applied . | . . . . . Relay Couplers Released . | . . . . . Fabnet Peak Effective % . | . . . . . Robots Rewired . | . . . . . Allies Hacked . | . . . . . Hacks Repelled . | . . . . . Allies | -11 -10 -10 -9 -8 -------- Run | Yrd Mat Min Mat Mat Total Allies . | . . . . . Largest Group . | . . . . . Highest-Rated Group . | . . . . . Highest-Rated Ally . | . . . . . Total Orders . | . . . . . Ally Attacks . | . . . . . Total Damage . | . . . . . Kills . | . . . . . Allies Corrupted . | . . . . . Allies Melted . | . . . . . Intel | -11 -10 -10 -9 -8 ------- Run | Yrd Mat Min Mat Mat Robot Analysis Total 1 | . . . 1 . Derelict Logs Recovered 1 | . . 1 . . Drone Launches . | . . . . . Drone Recoveries . | . . . . . Exploration | -11 -10 -10 -9 -8 ------------- Run | Yrd Mat Min Mat Mat Turns Passed 2886 | 88 528 555 670 1045 Spaces Moved 1771 | 51 323 395 517 485 Core 3 | 2 . 1 . . Treads 379 | . . . . 379 Legs 897 | 49 323 174 258 93 Wheels 253 | . . 185 68 . Hover 195 | . . . 182 13 Flight 44 | . . 35 9 . Fastest Speed 37 | 50 120 37 62 62 Average Speed 120 | 117 120 97 96 167 Slowest Speed 300 | 120 120 300 200 190 Overloaded Moves . | . . . . . Propulsion Burnouts . | . . . . . Robots Hopped . | . . . . . Cave-ins Triggered . | . . . . . Exploration Rate (%) 44 | 4 50 77 52 40 Regions Visited 4 Branch Regions 1 Pre-discovered Areas 1 | . . 1 . . Known Exits Taken . | . . . . . Unknown Exits Taken 4 | 1 1 1 1 . Scrap Searched 1 | . . 1 . . Spaces Dug . | . . . . . Terrain Destroyed 389 | . . . 292 97 Melee . | . . . . . Projectile 1 | . . . . 1 AOE 388 | . . . 292 96 Terrain Rammed . | . . . . . Walls Destroyed . | . . . . . Machines Disabled . | . . . . . Actions | -11 -10 -10 -9 -8 --------- Run | Yrd Mat Min Mat Mat Total 2175 | 69 395 489 618 604 Wait 29 | . 10 8 10 1 Move 1767 | 50 322 394 516 485 Hop . | . . . . . Pick Up 49 | 7 11 2 15 14 Fast Attach 16 | . 3 7 1 5 Attach 22 | 7 1 2 7 5 Detach 2 | . . 2 . . Swap 23 | . 5 4 7 7 Drop 40 | . 7 8 12 13 Fire 224 | 5 35 61 49 74 Melee . | . . . . . Ram 2 | . . 1 1 . Kick 1 | . 1 . . . Crush . | . . . . . Escape Stasis . | . . . . . Rewire . | . . . . . Trap . | . . . . . Miscellaneous . | . . . . . Route ------- -11/Scrapyard -10/Materials (discovered 2 exits: *Mat / [*Min]) -10/Mines (discovered 2 exits: *Mat x2) -9/Materials (discovered 3 exits: *Mat / [*Min x2]) -8/Materials (discovered 2 exits: [*Fac x2]) History --------- Turn | Location | Event 9 | -11/Scrapyard | Discovered new exit (range 15) 89 | -11/Scrapyard | Entered Materials 300 | -10/Materials | Build established: Mutant 373 | -10/Materials | Discovered new exit (range 12) 515 | -10/Materials | Discovered new exit (range 10) 617 | -10/Materials | Entered Mines 653 | -10/Mines | Build established: Scavenger-Mutant 777 | -10/Mines | Assembled infested the area 908 | -10/Mines | Core integrity fell below 50% 1017 | -10/Mines | Discovered new exit (range 15) 1072 | -10/Mines | Discovered new exit (range 12) 1086 | -10/Mines | Learned location of Recycling (-7) 1124 | -10/Mines | Received a Rocket Launcher from a helpful Derelict 1167 | -10/Mines | Build established: Mutant 1172 | -10/Mines | Entered Materials 1172 | -9/Materials | Evolved 2 slots: Propulsion x2 1283 | -9/Materials | Lost 3 parts (1p2n) 1341 | -9/Materials | Discovered new exit (range 15) 1420 | -9/Materials | Discovered new exit (range 14) 1583 | -9/Materials | Build established: Scavenger-Mutant 1816 | -9/Materials | Discovered new exit (range 15) 1818 | -9/Materials | Core integrity fell below 50% 1842 | -9/Materials | Entered another Materials area 1842 | -8/Materials | Evolved 2 slots: Utility x2 2130 | -8/Materials | Discovered new exit (range 15) 2133 | -8/Materials | Build established: Hacker-Mutant 2852 | -8/Materials | Discovered new exit (range 12) 2887 | -8/Materials | Self-destructed Last Messages --------------- W-25 Informer destroyed. Critical hit (Burn: +37). R-06 Scavenger collects Prototype Hover Unit. U-05 Engineer lays Concrete. G-47 Trooper IFF system glitched. Chain reaction triggered in Corrupted Lgt. Deuterium Engine. G-50 Soldier misfires. U-05 Engineer lays Concrete. R-06 Scavenger collects Prototype Flight Unit. U-05 Engineer builds a Wall. G-50 Soldier IFF system glitched. G-47 Trooper destroyed. Destroyed Lgt. Angular Momentum Engine. R-06 Scavenger collects Prototype Ballistic Gun. Critical hit (Burn: +37). U-05 Engineer lays Concrete. G-47 Trooper misfires. U-05 Engineer lays Concrete. Hacking Suite destroyed. Map ----- +----------------------------------------------------+ | ???????????????????????????????????????? | | ???????????????????????????????????????? | | ###????????????????????????????????????? | | #????????????????????????????????????? | | #????????????????????????????????????? | | #????????????????????????????????????? | | #????????????????????????????????????? | | #????????????????????????????????????? | | #????????????????????????????????????? | | #????????????????????????????????????? | | ###??????????????????????;?????????????? | | #???????????????????###?? ?????????????? | | #??????##########?? ??# ?????????????? | | #??????# #?? ??# ?????????????? | | #??????# """ #? ??# ?##??????????? | | #?????## """ #?""" ]; # ??????????? | | #??#### """ " # """ ; ;;#??????????? | | #??# # """ ; ???????????? | | #??# # w ; k???????????? | | #??# # """ # =;???????????? | | #??# # * # """ # #???????????? | | #??# [* [!# """ g#%g#???????????? | | #??# # # # # [ ###?????????? | | #??# !![%########## #?????????? | | ######+ # ==%[u #??????????? | | = %*! !% @ #??????????? | | ######+## [ r ##??????????? | | ????? # % ####### #???????????? | | ????? #######?????# #???????????? | | ???? #???????????# #???????????? | | ???? #???????????# #???????????? | | ???# #??????????? #??????????? | | ???######?????????? < #??????????? | | ?????????????????? #??????????? | | ?????????????????############??????????? | | ???????????????????????????????????????? | | ???????????????????????????????????????? | | ???????????????????????????????????????? | | ???????????????????????????????????????? | | ???????????????????????????????????????? | | ???????????????????????????????????????? | | ???????????????????????????????????????? | | ???????????????????????????????????????? | | ???????????????????????????????????????? | | ???????????????????????????????????????? | | ???????????????????????????????????????? | | ???????????????????????????????????????? | | ???????????????????????????????????????? | | ???????????????????????????????????????? | | ???????????????????????????????????????? | +----------------------------------------------------+ Best States ------------- Heat Dissipation 31 Energy Generation 14 Energy Capacity 265 Matter Stores 300 Matter Capacity 300 Sight Range 16 Terrain Scan Range 16 Terrain Scan Density 10 Armor Coverage 150 Evasion (%) 62 Launcher Accuracy 20 Recoil Reduction 4 Offensive Hacking 20 Item Schematics ----------------- Adv. Beam Cannon | -9/Materials | Scanalyzed Robot Schematics ------------------ None Fabricated ------------ Nothing Alien Tech Used ----------------- None Achievements -------------- Universal Adapter Challenges ------------ None Game ------ Seed WeldingCoolantStorage Manual? 0 Play Time 00:30:44 Cumulative 8.3 hours Start 2024.03.31 @ 20:13:56 End 2024.03.31 @ 20:54:14 Sessions 3 Manual Loads 0 Difficulty Rogue Special Mode None Game No. 17 Rogue 16 Adventurer 1 Explorer 0 Win Type - Total 0 Types 0/0/0/0/0/0/0/0/0 Lore% 3 Gallery% 14 Achievement% 13 Wizard Run 0 Options --------- Layout 1 ASCII 0 Keyboard 0 Movement Mouse Keybinds 0 Fullscreen 2 Font 24/Terminus Map View 50x35 Zoom Use 0% Tactical HUD 0 Map Filters NONE Filters NONE Steam 1 RUN: 8ff5c098-54ad-4d9e-8702-bf6661fbba69